{"text_format":"3","workbook":"xlsx","n_sheets":3,"sheets":["EXT","Translation","Selections"],"not_rendered":{"images":11,"defined_names":1},"read":"whole","date_system":"1900"}

{"sheet":"EXT","index":0,"n_rows":67,"n_cols":27,"rows_kept":67,"merged":[[1,9,1,11],[1,12,1,19],[2,14,2,15],[2,16,2,17],[2,18,2,19],[3,3,4,3],[4,14,10,14],[4,15,8,15],[4,16,12,17],[4,18,10,18],[4,19,8,19],[9,15,12,15],[9,19,12,19],[11,14,12,14],[11,18,12,18],[13,0,14,0],[13,3,14,3],[14,6,15,6],[14,21,16,26],[15,8,16,8],[16,10,17,10],[17,3,18,4],[17,12,18,12],[19,21,24,26],[57,0,57,1],[57,6,57,7],[57,9,57,10],[61,23,61,26],[62,23,64,26]]}
[]
["Zvolte jazyk",{"$nulls":4},{"$f":"Translation!A3","v":"Hauteur"},{"$nulls":3},{"$f":"Translation!A6","v":"Porte sans moteur"},null,null,{"$f":"Translation!A7","v":"Porte avec moteur"},{"$nulls":7},"H",{"$f":"Translation!A26","v":"Hauteur de la baie de construction [mm]"}]
["Select a language",{"$nulls":4},{"$f":"Translation!A4","v":"Générale [mm]"},"FOH","D","K","min. CEL","CPH*1","CPH*1 *2",{"$f":"J3","v":"min. CEL"},"CPH*1","X",null,"E1",null,"E2",null,"GH",{"$f":"Translation!A3&\" \"&Translation!A4","v":"Hauteur Générale [mm]"}]
["Wählen Sie eine Sprache:",null,null,"FR",null,"GH","GH + 0","GH + 575","GH - 35","GH + 100","GH - 250","GH - 0","GH + 125","GH - 0","Black","RUN 600",{"$f":"O4","v":"Black"},{"$f":"P4","v":"RUN 600"},{"$f":"Q4","v":"Black"},"RUN 600","FOH",{"$f":"Translation!A9","v":"Hauteur jusqu'à l'arête inférieure du profilé de linteau [mm]"}]
["Wybierz język:",{"$nulls":4},1875,{"$f":"F5+0","v":1875},{"$f":"F5+575","v":2450},{"$f":"F5-35","v":1840},{"$f":"F5+100","v":1975},{"$f":"F5-250","v":1625},{"$f":"F5","v":1875},{"$f":"J5+(35-10)","v":2000},{"$f":"F5","v":1875},3540,3100,1400,null,3265,2950,"D",{"$f":"Translation!A12","v":"Profondeur du guidage [mm]"}]
["Sélectionner une langue:",{"$nulls":3},"REN",1955,{"$f":"F6+0","v":1955},2530,1920,2055,1705,{"$f":"F6","v":1955},2080,1955,{"$nulls":6},"K",{"$f":"Translation!A16","v":"Arête inférieure du guidage horizontale [mm]"}]
["Kies een taal:",{"$nulls":4},2000,{"$f":"F7+0","v":2000},2575,1965,2100,1750,{"$f":"F7","v":2000},2125,2000,{"$nulls":6},"CEL",{"$f":"Translation!A8","v":"Hauteur du plafond [mm]"}]
[{"$nulls":4},"REN",2080,{"$f":"F8+0","v":2080},2655,2045,2180,1830,2080,2205,2080,{"$nulls":6},"CPH",{"$f":"Translation!A10","v":"Arête inférieure de la porte toute ouverte [mm]"}]
[{"$nulls":5},2125,{"$f":"F9+0","v":2125},2700,2090,2225,1875,2125,2250,2125,{"$nulls":6},"Y1",{"$f":"Translation!A22","v":"Point d'ancrage"}]
[{"$nulls":5},2250,2250,2825,2215,2350,2000,2250,2375,2250,null,{"$f":"O12","v":4240},{"$nulls":3},4060,"Y2",{"$f":"Translation!A23","v":"Point d'ancrage (W>3000 ou H>2500)"}]
[{"$nulls":5},2375,2375,2950,2340,2475,2125,2375,2500,2375,{"$nulls":6},"X",{"$f":"Translation!A14","v":"Longueur de la propulsion [mm]"}]
[{"$nulls":5},2500,2500,3075,2465,2600,2250,2500,2625,2500,4240,{"$nulls":3},3975,null,"E1",{"$f":"Translation!A18","v":"Point d'ancrage de la glissière de propulsion [mm]"}]
[{"$nulls":5},2625,{"$f":"F13+0","v":2625},3200,2590,2725,2375,{"$f":"F13","v":2625},2750,2625,{"$nulls":6},"E2",{"$f":"Translation!A20","v":"Point d'ancrage de la propulsion [mm]"}]
["     Z",null,null,"X","REN",{"$f":"Translation!A49","v":"= Le kit sans trou percé dans le cornier vertical, le cornier vertical en exécution blanc (RAL 9010)"},{"$nulls":14},"Z",{"$f":"Translation!A33","v":"La position de la prise électrique env. 250 mm"}]
[{"$nulls":6},"E2",{"$nulls":13},"*1",{"$f":"Translation!A50","v":"L´ouverture de passage peut être réduite par les accessoires installés en intérieur du vantail de porte (les poignées, les renforts etc.)"}]
[{"$nulls":8},"D"]
[{"$nulls":10},"E1",{"$nulls":6},{"$f":"Translation!A28&\" (GH = H = FOH)\"","v":"Situation standard (GH = H = FOH)"}]
[{"$nulls":3},"Y1 = 400",{"$nulls":8},"Y2 = 800",{"$nulls":7},"*2",{"$f":"Translation!A51","v":"avec la butée pour ventail de porte"}]
[]
[{"$nulls":21},{"$f":"Translation!A30","v":"Assemblage de panneau et la conception de battant de porte est toujours considéré comme la base de FOH."}]
[]
[]
[]
[null,null,165]
[]
[]
[null,{"$f":"Translation!A34","v":"Prise CEE 7/3 ou CEE 7/5"},{"$nulls":18},"GH"]
[null,{"$f":"Translation!A35","v":"230V, 50Hz, assuré par un disjoncteur 6 A (10 A)"},{"$nulls":18},"="]
[{"$nulls":20},"H"]
[{"$nulls":20},"="]
[{"$nulls":20},"FOH"]
[]
[]
[]
[]
[]
[{"$nulls":17},{"$f":"Translation!A29&\" (GH > H)\"","v":"Situation hors de standard (GH > H)"},{"$nulls":4},{"$f":"Translation!A29&\" (GH < H)\"","v":"Situation hors de standard (GH < H)"}]
[]
[]
[{"$nulls":5},"GH - 75",{"$nulls":4},"K",{"$nulls":3},"GH","CEL "]
{"$rows_empty":7}
[{"$nulls":26},"H"]
[{"$nulls":20},"GH",{"$nulls":3},"GH"]
[{"$nulls":19},"H","=",{"$nulls":3},"=  "]
[{"$nulls":12},140,{"$nulls":7},"FOH  ",{"$nulls":3},"FOH"]
[]
[]
[]
[]
[{"$nulls":15},{"$f":"Translation!A52","v":"Capacité min.de charge du plafond / capacité max.de charge des points d´ancre : 100kg"}]
[{"$f":"Translation!A24","v":"Assemblage standard"},{"$nulls":5},{"$f":"Translation!A25","v":"Assemblage alternatif "}]
["    >= 95",{"$nulls":3},">=95",null,"0 - 94",null,null,"0 - 94"]
[]
[]
[]
[{"$nulls":23},"https://www.door-documents.com/en/installation-drawing-ext"]
[{"$nulls":23},"Guardy EXT"]
[]
[]
[{"$nulls":25},{"$f":"Translation!A31","v":"VERSION:"},{"$f":"Translation!A32","v":"FORMAT:"}]
[{"$nulls":25},1850,"A4"]

{"sheet":"Translation","index":1,"n_rows":52,"n_cols":10,"rows_kept":52,"hidden":true}
["EXT"]
[{"$f":"IF(EXT!D4=E2,1,IF(EXT!D4=F2,2,IF(EXT!D4=G2,3,IF(EXT!D4=H2,4,IF(EXT!D4=I2,5,IF(EXT!D4=J2,6,\"Chyba\"))))))","v":5},{"$nulls":3},"CZ","EN","DE","PL","FR","NL"]
[{"$f":"VLOOKUP(E3,E:J,$A$2,FALSE)","v":"Hauteur"},{"$nulls":3},"Obecná","General","Allgemeine","Ogólna ","Hauteur","Algemene"]
["Générale [mm]",{"$nulls":3},"výška [mm]","height [mm]","Höhe [mm]","wysokość [mm]","Générale [mm]","hoogte [mm]"]
["Hauteur minimale du plafond [mm]",{"$nulls":3},"Min. výška stropu [mm]","Min. height of ceiling [mm]","Min. Deckenhöhe [mm]","Min wysokość stropu [mm]","Hauteur minimale du plafond [mm]","Min. plafondhoogte [mm]"]
["Porte sans moteur",{"$nulls":3},"Vrata bez motoru","Manually operated","Tor ohne Motor","Brama bez napędu","Porte sans moteur","Deur zonder motor"]
["Porte avec moteur",{"$nulls":3},"Vrata s motorem","Electrically operated","Tor mit Motor","Brama z napędem","Porte avec moteur","Garaged. met motor"]
["Hauteur du plafond [mm]",{"$nulls":3},"Výška stropu [mm]","Height of ceiling [mm]","Deckenhöhe [mm]","Wysokość stropu [mm]","Hauteur du plafond [mm]","Plafondhoogte [mm]"]
["Hauteur jusqu'à l'arête inférieure du profilé de linteau [mm]",{"$nulls":3},"Výška ke spodní hraně překladového profilu [mm]","Height to bottom edge of lintel profile [mm]","Höhe zur unteren Kante des Sturzprofiles [mm]","Wysokość do dolnej krawędzi profilu nadproża [mm]","Hauteur jusqu'à l'arête inférieure du profilé de linteau [mm]","Hoogte vanaf de onderrand van het dwarsbalkprofiel [mm]"]
["Arête inférieure de la porte toute ouverte [mm]",{"$nulls":3},"Spodní hrana plně otevřených vrat [mm]","Bottom edge of fully open door [mm]","Untere Kante des vollständig geöffneten Tors [mm]","Dolna krawędź w pełni otwartej bramy [mm]","Arête inférieure de la porte toute ouverte [mm]","Onderste rand van een volledig geopende deur [mm]"]
["Arête inférieure de la porte toute ouverte (CPH) [mm]",{"$nulls":3},"Spodní hrana plně otevřených vrat (CPH) [mm]","Bottom edge of fully open door (CPH) [mm]","Untere Kante des vollständig geöffneten Tors (CPH) [mm]","Dolna krawędź w pełni otwartej bramy (CPH) [mm]","Arête inférieure de la porte toute ouverte (CPH) [mm]","Onderste rand van een volledig geopende deur (CPH) [mm]"]
["Profondeur du guidage [mm]",{"$nulls":3},"Hloubka vedení [mm]","Back room [mm]","Führungstiefe [mm]","Głębokość prowadzenia [mm]","Profondeur du guidage [mm]","Inbouwdiepte van de rails [mm]"]
["Profondeur du guidage (D) [mm]",{"$nulls":3},"Hloubka vedení (D) [mm]","Back room (D) [mm]","Führungstiefe (D) [mm]","Głębokość prowadzenia (D) [mm]","Profondeur du guidage (D) [mm]","Diepte van de geleidingsrail (D) [mm]"]
["Longueur de la propulsion [mm]",{"$nulls":3},"Délka pohonu [mm]","Length of motor [mm]","Antriebslänge [mm]","Długość napędu [mm]","Longueur de la propulsion [mm]","Inbouwdiepte incl. de aandrijving [mm]"]
["Longueur de la propulsion (X) [mm]",{"$nulls":3},"Délka pohonu (X) [mm]","Length of motor (X) [mm]","Antriebslänge (X) [mm]","Długość napędu (X) [mm]","Longueur de la propulsion (X) [mm]","Inbouwdiepte incl. de aandrijving (X) [mm]"]
["Arête inférieure du guidage horizontale [mm]",{"$nulls":3},"Spodní hrana horizontálního vedení [mm]","Bottom edge of horizontal tracks [mm]","Untere Kante der Horizontalführung [mm]","Dolna krawędź prowadzenia poziomego [mm]","Arête inférieure du guidage horizontale [mm]","Onderste rand van de horizontale rails [mm]"]
["Arête inférieure du guidage horizontale (K) [mm]",{"$nulls":3},"Spodní hrana horizontálního vedení (K) [mm]","Bottom edge of horizontal tracks (K) [mm]","Untere Kante der Horizontalführung (K) [mm]","Dolna krawędź prowadzenia poziomego (K) [mm]","Arête inférieure du guidage horizontale (K) [mm]","Onderste rand van de horizontale rails (K) [mm]"]
["Point d'ancrage de la glissière de propulsion [mm]",{"$nulls":3},"Kotvící bod lišty pohonu [mm]","Hanging point for motor track [mm]","Verankerungspunkt der Antriebsleiste [mm]","Punkt uchwycenia szyny napędu [mm]","Point d'ancrage de la glissière de propulsion [mm]","Bevestigingspunt van de motorgeleidingsrail [mm]"]
["Point d'ancrage de la glissière de propulsion (E1) [mm]",{"$nulls":3},"Kotvící bod lišty pohonu (E1) [mm]","Hanging point for motor track (E1) [mm]","Verankerungspunkt der Antriebsleiste (E1) [mm]","Punkt uchwycenia szyny napędu (E1) [mm]","Point d'ancrage de la glissière de propulsion (E1) [mm]","Bevestigingspunt van de motorgeleidingsrail (E1) [mm]"]
["Point d'ancrage de la propulsion [mm]",{"$nulls":3},"Kotvící bod pohonu [mm]","Hanging point for motor [mm]","Verankerungspunkt des Antriebes [mm]","Punkt uchwycenia napędu [mm]","Point d'ancrage de la propulsion [mm]","Bevestigingspunt van de aandrijvingsgeleidingsbalk [mm]"]
["Point d'ancrage de la propulsion (E2) [mm]",{"$nulls":3},"Kotvící bod pohonu (E2) [mm]","Hanging point for motor (E2) [mm]","Verankerungspunkt des Antriebes (E2) [mm]","Punkt uchwycenia napędu (E2) [mm]","Point d'ancrage de la propulsion (E2) [mm]","Bevestigingsp. van de aandrijvingsgeleidingsbalk (E2) [mm]"]
["Point d'ancrage",{"$nulls":3},"Kotvící bod","Hanging point","Verankerungspunkt","Punkt uchwycenia","Point d'ancrage","Bevestigingspunt"]
["Point d'ancrage (W>3000 ou H>2500)",{"$nulls":3},"Kotvící bod (W>3000 nebo H>2500)","Hanging point (W>3000 or H>2500)","Verankerungspunkt (W>3000 oder H>2500)","Punkt uchwycenia (W>3000 lub H>2500)","Point d'ancrage (W>3000 ou H>2500)","Bevestigingspunt (W>3000 of H>2500)"]
["Assemblage standard",{"$nulls":3},"Standardní montáž","Standard installation","Standardmontage","Instalacja standardowa","Assemblage standard","Standaardmontage"]
["Assemblage alternatif ",{"$nulls":3},"Alternativní montáž","Alternative installation","Alternative Montage","Instalacja alternatywna","Assemblage alternatif ","Alternatieve montage"]
["Hauteur de la baie de construction [mm]",{"$nulls":3},"Výška stavebního otvoru [mm]","Clear opening height [mm]","Höhe der Bauöffnung [mm]","Wysokość otworu budowlanego [mm]","Hauteur de la baie de construction [mm]","Dagmaat hoogte [mm]"]
["Hauteur de la baie de construction (H) [mm]",{"$nulls":3},"Výška stavebního otvoru (H) [mm]","Clear opening height (H) [mm]","Höhe der Bauöffnung (H) [mm]","Wysokość otworu budowlanego (H) [mm]","Hauteur de la baie de construction (H) [mm]","Dagmaat hoogte (H) [mm]"]
["Situation standard",{"$nulls":3},"Standardní situace","Standard situation","Standardsituation","Sytuacja standardowa","Situation standard","Standaardsituatie"]
["Situation hors de standard",{"$nulls":3},"Nestandardní situace","Non-standard situation","Ungewöhnliche Situation","Sytuacja niestandardowa","Situation hors de standard","Niet-standaardsituaties"]
["Assemblage de panneau et la conception de battant de porte est toujours considéré comme la base de FOH.",{"$nulls":3},"Skladba panelů a design křídla je vždy řešen vůči FOH.","Panel assembly and design of door leaf is always considered based on FOH.","Die Paneelaufteilung und das Design des Torblattes wird immer auf der Basis von FOH-Mass gelöst.","Skład paneli i konstrukcja skrzydła jest zawsze rozpatrywane na podstawie FOH.","Assemblage de panneau et la conception de battant de porte est toujours considéré comme la base de FOH.","Paneel samenstelling en complete opbouw van het deurblad wordt altijd  gebaseerd op FOH."]
["VERSION:",{"$nulls":3},"Verze:","Version:","Version:","Wersja:","VERSION:","Versie:"]
["FORMAT:",{"$nulls":3},"Formát:","Sheet:","Format:","Format:","FORMAT:","Formaat:"]
["La position de la prise électrique env. 250 mm",{"$nulls":3},"Pozice zásuvky, cca. 250 mm","Position of socket, ca. 250 mm","Die Position der Steckdose ca.250 mm","Położenie gniazda około 250 mm","La position de la prise électrique env. 250 mm","Positie van Eurostopcontact CEE, ca. 250mm"]
["Prise CEE 7/3 ou CEE 7/5",{"$nulls":3},"Zásuvka typu CEE 7/3 nebo CEE 7/5","CEE 7/3 or CEE 7/5 socket","Steckdose CEE 7/3 oder CEE 7/5","Gniazdo CEE 7/3 lub CEE 7/5","Prise CEE 7/3 ou CEE 7/5","Eurostopcontact CEE 7/3 of CEE 7/5"]
["230V, 50Hz, assuré par un disjoncteur 6 A (10 A)",{"$nulls":3},"230V, 50Hz, jištěno 6 A (10 A) jističem","230V, 50Hz, protect by 6 A (10 A) circuit breaker","230V, 50Hz, Sicherung 6 A (10 A) mit Schutzschalter","230V, 50Hz, ochrona za pomocą bezpiecznika 6A (10A)","230V, 50Hz, assuré par un disjoncteur 6 A (10 A)","230V, 50Hz, afgezekerd met 6A (10A)"]
["Largeur de baie [mm]",{"$nulls":3},"Šířka stavebního otvoru [mm]","Opening width [mm]","Lichte Breite [mm]","Szerokość otworu [mm]","Largeur de baie [mm]","Opening breedte "]
["Largeur de baie (W) [mm]",{"$nulls":3},"Šířka stavebního otvoru (W) [mm]","Opening width (W) [mm]","Lichte Breite (W) [mm]","Szerokość otworu (W) [mm]","Largeur de baie (W) [mm]","Opening breedte (W) [mm]"]
["Commande",{"$nulls":3},"Ovládání","Operated","Bedienung","Sterowanie","Commande","Bediening"]
["manuelle",{"$nulls":3},"ručně","manually","händisch","ręcznie wykonany","manuelle","handbediend"]
["motorisée",{"$nulls":3},"elektricky","electrical ","elektrisch","elektrycznie","motorisée","elektrisch"]
["Retombée de linteau [mm]",{"$nulls":3},"Výška nádpraží [mm]","Height of lintel [mm]","Freiraum über Sturz [mm]","Wysokość nadproża [mm]","Retombée de linteau [mm]","Hoogte van de latei [mm]"]
["Retombée de linteau (F) [mm]",{"$nulls":3},"Výška nádpraží (F) [mm]","Height of lintel (F) [mm]","Freiraum über Sturz (F) [mm]","Wysokość nadproża (F) [mm]","Retombée de linteau (F) [mm]","Hoogte van de latei (F) [mm]"]
["Type de motor",{"$nulls":3},"Typ pohonu","Type of motor","Der Typ des Antriebs","Rodzaj napędu","Type de motor","Type motor"]
["Information concernant le moteur",{"$nulls":3},"Informace o motoru","Information regarding motor","Die Information über den Antrieb","Informacje o napędu","Information concernant le moteur","Informatie betreffende de motor"]
["Emplacement du joint d'étanchéité",{"$nulls":3},"Umístění horního těsnění","Placement of top sealing","Die Unterbringung der Oberdichtung","Umieszczenie górnego uszczelnienia","Emplacement du joint d'étanchéité","Plaatsing van de top afdichting"]
["au linteau",{"$nulls":3},"na překladu","at lintel","Auf dem Sturz ","Na nadprožu","au linteau","op de latei"]
["sur le panneau supérieur",{"$nulls":3},"na horní sekci","on the top section","Auf der Obersektion","Na górnej częśći ","sur le panneau supérieur","boven op top paneel"]
["SL version",{"$nulls":3},"Verze SL vedení","Version of SL track system","Version der SL-Umlenkung","SL wersja","SL version","Versie van SL beslagsysteem"]
["= Le kit sans trou percé dans le cornier vertical, le cornier vertical en exécution blanc (RAL 9010)",{"$nulls":3},"= sety bez předvrtaných otvorů ve svislém úhelníku; svislý úhelník v bílém provedení (RAL 9010)","= set without pre-drilled holes in vertical angle; vertical angle in white color (RAL 9010)","= Zargensätze ohne vorgeborte Löcher, Ausführung in RAL 9010","= zestawy bez wcześniej nawierconych otworów pod kątem pionowym, kąt pionowy w kolorze białym (RAL 9010)","= Le kit sans trou percé dans le cornier vertical, le cornier vertical en exécution blanc (RAL 9010)","= Set is zonder voorgeboorde gaten in verticale hoek; verticale hoek in kleur wit (RAL 9010)"]
["L´ouverture de passage peut être réduite par les accessoires installés en intérieur du vantail de porte (les poignées, les renforts etc.)",{"$nulls":3},"průjezdná výška může být snížena příslušenstvím nainstalovaným na vnitřní straně vratového křídla (madlo, výztuha apod.)","clear height could be decreased by accessories installed on inner side of door leaf (handgrip, reinforcing strut etc.)","Durchfahrtshöhe kann bei der Montage der Zubehörteile an die Innenseite des Torflügels reduziert werden (betrifft Handgriff, Versteifungen, etc.)","wysokość prześwitu może zostać zmniejszona dzięki akcesoriom zainstalowanym po wewnętrznej stronie skrzydła drzwi (uchwyt, wzmocnienie itp.)","L´ouverture de passage peut être réduite par les accessoires installés en intérieur du vantail de porte (les poignées, les renforts etc.)","De hoogte van de vrije ruimte kan worden verlaagd door accessoires die aan de binnenkant van het deurblad zijn gemonteerd (handgreep, verstevigingsprofielen, enz.)"]
["avec la butée pour ventail de porte",{"$nulls":3},"při použití zarážky vratového křídla","when door stopper is used","bei der Verwendung der Toorflügelsperre","przy użyciu ogranicznika skrzydła bramy","avec la butée pour ventail de porte","wanneer de deurstopper wordt gebruikt"]
["Capacité min.de charge du plafond / capacité max.de charge des points d´ancre : 100kg",{"$nulls":3},"Minimální únosnost stropu/maximální zatížení v každém kotevním bodě: 100 kg","Min. load capacity of ceiling/max. weight per hanging point: 100 kg","Minimale Tragfähigkeit der Decke/maximale Belastung in jedem einzelnen Befestigungspunkt: 100kg","Minimalne obciążenie sufitu / maksymalne obciążenie w każdym punkcie uchwycenia: 100 kg","Capacité min.de charge du plafond / capacité max.de charge des points d´ancre : 100kg","Minimaal draagvermogen van plafond/maximaal gewicht per bevestigingspunt: 100kg"]

{"sheet":"Selections","index":2,"n_rows":49,"n_cols":17,"rows_kept":49,"hidden":true}
["Výběr jazyka",null,"LHF-C"]
["CZ"]
["EN",null,{"$f":"Translation!B38","v":0},null,"Hloubka vedení",{"$nulls":3},{"$f":"Translation!B43","v":0},null,"Délka pohonu",null,null,"Kotvící bod pohonu"]
["DE"]
["PL",null,{"$f":"Translation!B39","v":0},null,0,{"$f":"2575","v":2575},null,null,"Black",null,{"$f":"I5","v":"Black"},null,null,{"$f":"I5","v":"Black"}]
["NL",null,{"$f":"Translation!B40","v":0},null,2001,2700,null,null,"RUN 600",null,0,3540,null,0,3265]
["FR",{"$nulls":3},2126,2825,{"$nulls":4},2376,4240,null,2376,3975]
[{"$nulls":4},2251,2950]
["Výběr uložení",{"$nulls":3},2376,3075,{"$nulls":4},{"$f":"I6","v":"RUN 600"},null,null,{"$f":"I6","v":"RUN 600"}]
["Ano",{"$nulls":3},2501,3325,{"$nulls":4},0,3100,null,0,2950]
["Ne",{"$nulls":3},2751,3575,{"$nulls":4},2126,4240,null,2126,4060]
[]
[null,null,"LHR-C"]
[]
[null,null,{"$f":"Translation!C38","v":0},null,"Hloubka vedení",{"$nulls":3},{"$f":"Translation!C43","v":0},null,"Délka pohonu",null,null,"Kotvící bod pohonu"]
[]
[null,null,{"$f":"Translation!C39","v":0},null,0,{"$f":"2575+120","v":2695},null,null,"Black",null,{"$f":"I17","v":"Black"},null,null,{"$f":"I17","v":"Black"}]
[null,null,{"$f":"Translation!C40","v":0},null,2001,{"$f":"2700+120","v":2820},null,null,"RUN 600",null,0,3540,null,0,3265]
[{"$nulls":4},2126,{"$f":"2825+120","v":2945},{"$nulls":4},2376,4240,null,2376,3975]
[null,null,"Umístění horního těsnění",null,2251,{"$f":"2950+120","v":3070},null,null,{"$f":"Translation!C42","v":0}]
[{"$nulls":4},2376,{"$f":"3075+120","v":3195},null,null,{"$f":"IF(H21=Selections!C17,90,IF(H21=Selections!C18,125,\"Error\"))","v":90},null,{"$f":"I18","v":"RUN 600"},null,null,{"$f":"I18","v":"RUN 600"}]
[null,null,{"$f":"Translation!C46","v":0},null,2501,{"$f":"3325+120","v":3445},null,null,{"$f":"IF(H22=Selections!C22,0,IF(H22=Selections!C23,35,\"Error\"))","v":0},null,0,3100,null,0,2950]
[null,null,{"$f":"Translation!C47","v":0},null,2751,{"$f":"3575+120","v":3695},{"$nulls":4},2126,4240,null,2126,4060]
[]
[null,null,"GV-SL"]
[]
[null,null,{"$f":"Translation!D38","v":0},{"$nulls":5},{"$f":"Translation!D43","v":0},null,"Délka pohonu",null,null,"Kotvící bod pohonu",null,null,{"$f":"Translation!D48","v":0}]
[]
[null,null,{"$f":"Translation!D39","v":0},{"$nulls":5},"Black",null,{"$f":"I29","v":"Black"},null,null,{"$f":"I29","v":"Black"},null,null,"SL 350"]
[null,null,{"$f":"Translation!D40","v":0},{"$nulls":5},"RUN 600",null,0,3540,null,0,3265,null,"SL 420"]
[{"$nulls":10},2376,4240,null,2376,3975]
[]
[{"$nulls":10},{"$f":"I30","v":"RUN 600"},null,null,{"$f":"I30","v":"RUN 600"}]
[{"$nulls":10},0,3100,null,0,2950]
[{"$nulls":10},2126,4240,null,2126,4060]
{"$rows_empty":10}
[{"$nulls":5},"Version of SL system",null,"SL wersja","SL version"]
[]
[]
[{"$nulls":9},"wanneer de deurstopper wordt gebruikt"]